bitfinex/quotes_ETHUSD_20241004
["timestamp","ask_amount","ask_price","bid_price","bid_amount"]
[1728051404047,18.0,2380.1,2379.7,4.98349]
[1728051404333,18.0,2380.1,2379.7,0.7814]
[1728051404334,4.2017,2380.0,2379.7,0.7814]
[1728051404747,18.0,2380.1,2379.7,4.98352]
[1728051404955,18.0,2380.1,2379.8,4.20194]
[1728051405301,18.0,2380.1,2379.8,4.20195]
[1728051405541,18.0,2380.1,2380.0,4.97948]
[1728051406551,18.0,2380.1,2380.0,5.01946402]
[1728051406976,18.0,2380.1,2380.0,8.01946402]
[1728051407757,18.0,2380.1,2380.0,7.97948]
[1728051411873,18.0,2380.1,2380.0,7.525843]
[1728051412084,18.0,2380.1,2380.0,8.790455]
[1728051414683,17.95,2380.1,2380.0,8.790455]
[1728051417943,17.95,2380.1,2380.0,9.762455]
[1728051419390,0.05875873,2380.1,2380.0,8.497843]
[1728051419545,0.05875873,2380.1,2380.0,32.809348]
[1728051419743,0.05875873,2380.1,2380.0,25.180811]
[1728051420340,0.034951,2380.1,2380.0,25.180811]
[1728051420588,0.1175618,2381.1,2381.0,4.99981]
[1728051421850,0.1175618,2381.1,2381.0,4.19991]
[1728051422572,0.1175618,2381.1,2381.0,4.23272288]
[1728051422791,0.1175618,2381.1,2381.0,4.19991]
[1728051423084,0.1175618,2381.1,2381.0,4.96481]
[1728051424056,0.1175618,2381.1,2381.0,4.19991]
[1728051424486,0.1175618,2381.1,2380.9,4.20005]
[1728051424674,0.1175618,2381.1,2381.0,4.19991]
[1728051424953,0.1175618,2381.1,2380.8,4.20016]
[1728051425382,0.1175618,2381.1,2380.7,5.00863]
[1728051425383,0.1175618,2381.1,2380.9,4.2]
[1728051426055,0.1175618,2381.1,2380.9,8.40001]
[1728051426250,0.1175618,2381.1,2380.9,4.2]
[1728051426494,0.1175618,2381.1,2380.9,4.19998]
[1728051426792,0.1175618,2381.1,2381.0,4.19991]
[1728051426953,0.1175618,2381.1,2381.0,4.95121]
[1728051427282,0.1175618,2381.1,2381.0,7.95121]
[1728051429866,0.1175618,2381.1,2381.0,7.19991]
[1728051431671,0.1175618,2381.1,2381.0,3.0]
[1728051432975,0.1175618,2381.1,2381.0,7.19991]
[1728051433396,4.3173018,2381.1,2380.7,4.20032]
[1728051433728,4.20034,2380.8,2380.4,4.20092]
[1728051433890,4.95132,2381.0,2380.4,4.2009]
[1728051434199,4.20048,2380.7,2380.3,4.20107]
[1728051434401,0.7513,2380.7,2380.4,4.20082]
[1728051434727,0.7513,2380.7,2380.1,4.20143]
[1728051434728,4.20095,2380.5,2380.1,4.20143]
[1728051435025,4.20095,2380.5,2379.8,0.58029117]
[1728051435026,4.20133,2380.2,2379.8,0.58029117]
[1728051435238,4.2017,2380.0,2379.8,0.58029117]
[1728051435420,4.2014,2380.2,2379.8,0.58029117]
[1728051435727,0.7513,2380.3,2379.8,0.58029117]
[1728051435728,4.9525,2380.3,2379.8,4.78221117]
[1728051435913,4.20152,2380.1,2379.8,0.58029117]
[1728051436224,0.7513,2380.3,2379.8,0.58029117]
[1728051436426,4.95245,2380.3,2379.9,4.20183]
[1728051436937,4.20134,2380.2,2379.8,0.58029117]
[1728051437233,4.20134,2380.2,2379.8,4.78230117]
[1728051437391,0.7513,2380.3,2379.8,0.58029117]
[1728051437592,4.20134,2380.2,2379.8,4.78230117]
[1728051438138,4.20151,2380.1,2379.8,0.58029117]
[1728051438631,4.20134,2380.2,2379.8,4.78231117]
[1728051439227,0.7513,2380.3,2379.8,4.78231117]
[1728051439433,4.95246,2380.3,2379.9,4.20183]
[1728051439733,4.95246,2380.3,2379.8,4.78231117]
[1728051439885,4.95246,2380.3,2379.8,4.78223117]
[1728051440091,4.20136,2380.2,2379.8,4.78223117]
[1728051440327,4.95246,2380.3,2379.8,4.78223117]
[1728051440651,4.95246,2380.3,2379.8,4.78217117]
[1728051440930,4.95246,2380.3,2379.8,0.58029117]
[1728051440931,4.20142,2380.2,2379.8,0.58029117]
[1728051441138,4.20168,2380.0,2379.8,0.58029117]
[1728051441290,4.20185,2379.9,2379.8,0.58029117]
[1728051441928,8.40349,2380.0,2379.8,0.58029117]
[1728051442148,0.7954,2380.1,2379.8,0.58029117]
[1728051442306,4.97125,2380.2,2379.8,0.58029117]
[1728051442829,0.7699,2380.2,2379.9,4.20185]
[1728051443032,0.7699,2380.2,2379.9,8.40363]
[1728051443243,0.7699,2380.2,2379.8,0.58029117]
[1728051443244,0.7699,2380.5,2380.1,4.20141]
[1728051443596,0.43974419,2380.7,2380.3,0.8167]
[1728051443917,4.96951,2380.9,2380.5,4.20079]
[1728051444141,0.8869618,2381.1,2380.3,0.8167]
[1728051444295,0.8869618,2381.1,2380.5,4.20067]
[1728051444502,5.0868018,2381.1,2380.6,4.20053]
[1728051444700,0.8869618,2381.1,2380.6,4.20053]
[1728051444898,4.19992,2381.0,2380.5,4.20067]
[1728051445134,8.39996,2381.0,2380.5,4.20067]
[1728051445440,8.39996,2381.0,2380.0,3.0]
[1728051445441,0.55,2380.8,2380.0,3.0]
[1728051445611,4.20105,2380.4,2380.0,3.0]
[1728051445815,0.8115,2380.5,2379.7,4.20208]
[1728051445816,4.20135,2380.2,2379.8,7.20202]
[1728051446139,5.01244,2380.5,2379.9,4.20185]
[1728051446440,16.15012216,2380.9,2380.4,4.20092]
[1728051446732,4.20052,2380.7,2380.2,4.20117]
[1728051447136,4.20052,2380.7,2380.2,8.40239]
[1728051447292,4.20052,2380.7,2380.2,4.20117]
[1728051447499,4.20052,2380.7,2380.2,8.4024]
[1728051447696,4.20052,2380.7,2380.3,4.20114]
[1728051447893,0.8307,2381.0,2380.6,4.20055]
[1728051448124,4.3174018,2381.1,2379.8,7.20191]
[1728051448125,0.1175618,2381.1,2380.9,4.19992]
[1728051448313,0.1175618,2381.1,2380.9,8.39987]
[1728051448843,0.1175618,2381.1,2380.9,4.19992]
[1728051449045,0.1175618,2381.1,2381.0,4.19991]
[1728051449344,0.1175618,2381.1,2381.0,5.01040435]
[1728051449500,0.1175618,2381.1,2381.0,8.01040435]
[1728051450232,0.1175618,2381.1,2381.0,7.98611]
[1728051451640,0.1175618,2381.1,2381.0,3.0]
[1728051452084,0.1175618,2381.1,2380.8,3.0]
[1728051452590,5.00611,2381.0,2380.4,5.02465]
[1728051452700,5.00611,2381.0,2380.2,4.20123]
[1728051452701,4.20059,2380.7,2380.2,4.20123]
[1728051453149,4.20091,2380.5,2380.0,4.2016]
[1728051453306,8.4018,2380.5,2380.0,4.2016]
[1728051453508,4.20089,2380.5,2380.0,4.20167]
[1728051453726,5.00691,2380.6,2380.1,4.20133]
[1728051454019,4.20116,2380.3,2379.9,4.20176]
[1728051454199,4.20116,2380.3,2379.7,4.20208]
[1728051454200,4.20141,2380.2,2379.7,4.20208]
[1728051454408,0.7648,2380.1,2379.7,4.20208]
[1728051454654,0.7648,2380.1,2379.8,4.2019]
[1728051454821,0.7648,2380.1,2379.6,0.7744]
[1728051454822,4.96632,2380.1,2379.7,4.2022]
[1728051455143,0.7648,2380.1,2379.8,4.20202]
[1728051455707,0.7648,2380.1,2379.6,4.20226]
[1728051455708,0.7648,2380.1,2379.6,4.20225]
[1728051455919,4.96635,2380.1,2379.5,8.40495]
[1728051456175,0.7648,2380.1,2379.6,4.20222]
[1728051456325,0.7648,2380.1,2379.7,4.20218]
[1728051456524,0.7648,2380.1,2379.8,4.20194]
[1728051456835,4.20186,2379.9,2379.5,4.20242]
[1728051457055,5.462918,2380.1,2379.7,4.20218]
[1728051457735,4.20171,2380.0,2379.5,4.20251]
[1728051457955,4.20194,2379.9,2379.5,4.20255]
[1728051459169,4.96638,2380.1,2379.5,4.20246]
[1728051459354,0.7648,2380.1,2379.6,4.20226]
[1728051459654,0.7648,2380.1,2379.7,3.899288]
[1728051459851,0.7648,2380.1,2379.8,4.20202]
[1728051460079,0.7648,2380.1,2379.8,4.20189]
[1728051460381,0.7648,2380.1,2379.8,4.20203]
[1728051460593,1.261405,2380.1,2379.7,4.20215]
[1728051460737,1.261405,2380.1,2379.6,4.20226]
[1728051460738,4.20092,2380.5,2379.9,0.7758]
[1728051460936,4.20092,2380.5,2379.8,4.20189]
[1728051460937,4.20099,2380.4,2380.0,4.2016]
[1728051461175,4.20123,2380.3,2379.8,4.20189]
[1728051461393,8.4019,2380.5,2379.9,4.20168]
[1728051461676,8.4019,2380.5,2380.0,4.20166]
[1728051461878,5.11717,2380.5,2380.1,4.20146]
[1728051462181,4.96004,2380.2,2379.6,4.20227]
[1728051462477,0.7586,2379.7,2379.3,4.20283]
[1728051462682,0.7586,2379.7,2379.2,3.0]
[1728051462862,0.7586,2379.7,2379.3,4.20283]
[1728051463070,0.7586,2379.7,2379.3,3.0]
[1728051463266,0.7586,2379.7,2379.4,4.20273]
[1728051463939,0.7627,2379.9,2379.1,0.752]
[1728051464139,0.7627,2379.9,2379.6,4.20238]
[1728051464376,0.7627,2379.9,2379.4,4.2026]
[1728051464610,4.96465,2379.9,2379.5,4.20253]
[1728051464766,0.7627,2379.9,2379.5,4.20246]
[1728051464950,0.7627,2379.9,2379.6,4.20225]
[1728051465696,0.7627,2379.9,2379.2,4.20301]
[1728051465697,4.20231,2379.7,2379.2,4.20301]
[1728051465853,4.2024,2379.6,2379.3,3.0]
[1728051466741,5.461148,2379.9,2379.3,3.0]
[1728051466742,4.20222,2379.7,2379.3,3.0]
[1728051467199,4.20251,2379.6,2379.1,0.752]
[1728051467360,5.00104,2379.5,2379.1,3.0]
[1728051467565,5.00104,2379.5,2379.1,4.20324]
[1728051467898,0.7984,2379.5,2379.2,4.20308]
[1728051468055,0.7984,2379.5,2379.2,8.40606]
[1728051469407,0.7984,2379.5,2379.2,4.20298]
[1728051469559,0.7984,2379.5,2379.2,8.40598]
[1728051470303,0.7984,2379.5,2379.2,4.203]
[1728051470502,0.7984,2379.5,2378.9,4.20348]
[1728051470657,4.20274,2379.4,2378.9,4.20348]
[1728051470861,4.20293,2379.3,2378.9,8.407]
[1728051471395,4.20293,2379.3,2378.8,3.8045]
[1728051471396,8.40596,2379.3,2378.8,7.20377]
[1728051471595,5.01534,2379.1,2378.7,6.20383]
[1728051472090,9.21869,2379.1,2378.7,6.20383]
[1728051472396,5.01534,2379.1,2378.7,10.40771]
[1728051472577,5.01534,2379.1,2378.7,2.0]
[1728051472780,4.20354,2379.0,2378.7,2.0]
[1728051473093,4.20373,2378.9,2378.7,2.0]
[1728051473705,4.20348,2379.0,2378.7,2.0]
[1728051473870,0.812,2379.1,2378.7,6.20386]
[1728051474071,5.02443,2379.4,2378.9,4.20352]
[1728051474292,0.8216,2379.4,2379.0,4.20332]
[1728051474598,0.8216,2379.4,2378.7,2.8286]
[1728051474599,4.20291,2379.3,2378.9,4.20359]
[1728051475021,4.20312,2379.2,2378.8,4.20376]
[1728051475389,4.20291,2379.3,2378.9,4.2036]
[1728051475592,8.40593,2379.3,2378.9,4.2036]
[1728051475901,4.2031,2379.2,2378.8,4.20372]
[1728051476104,9.22732,2379.4,2378.9,4.20354]
[1728051476429,4.20292,2379.3,2378.9,4.20354]
[1728051476985,4.20292,2379.3,2378.8,4.20378]
[1728051477232,4.20298,2379.3,2378.9,4.20358]
[1728051477396,0.8216,2379.4,2379.0,4.20331]
[1728051477397,4.20277,2379.4,2379.0,4.20331]
[1728051477756,4.20277,2379.4,2379.0,4.20344]
[1728051478224,4.20301,2379.3,2378.9,4.20359]
[1728051478530,0.7879,2379.2,2378.9,8.40712]
[1728051478738,0.7879,2379.5,2378.7,2.0]
[1728051478887,0.7879,2379.5,2379.2,4.20297]
[1728051479081,0.7879,2379.5,2379.1,4.20315]
[1728051479389,4.99057,2379.5,2379.1,4.20325]
[1728051479590,4.99055,2379.5,2379.1,4.20325]
[1728051480006,4.99055,2379.5,2379.0,4.20328]
[1728051480007,4.2028,2379.4,2379.0,4.20337]
[1728051480530,0.7879,2379.5,2379.0,4.20335]
[1728051480531,4.99055,2379.5,2379.0,4.20335]
[1728051480685,4.20274,2379.4,2379.0,4.20335]
[1728051480890,4.20297,2379.3,2378.8,4.20375]
[1728051481099,4.20297,2379.3,2378.7,2.0]
[1728051481100,4.20357,2379.0,2378.7,2.0]
[1728051481306,4.20364,2378.9,2378.7,2.0]
[1728051481813,4.2038,2378.8,2378.7,2.0]
[1728051482238,4.20364,2378.9,2378.7,2.0]
[1728051482405,8.40741,2378.9,2378.7,2.0]
[1728051482807,4.20364,2378.9,2378.7,2.0]
[1728051483442,0.8139,2379.0,2378.7,2.0]
[1728051483631,4.98341,2379.5,2378.8,4.20373]
[1728051483838,4.203,2379.3,2378.9,4.20354]
[1728051484002,4.98341,2379.5,2378.7,2.7515]
[1728051484003,4.98341,2379.5,2379.1,4.20326]
[1728051484202,4.20293,2379.3,2378.9,4.20352]
[1728051484502,0.776,2379.2,2378.7,2.0]
[1728051484702,4.97974,2378.9,2378.7,2.0]
[1728051484926,4.2038,2378.8,2378.7,2.0]
[1728051491012,4.7538,2378.8,2378.7,2.0]
[1728051491666,8.5756,2378.8,2378.7,2.0]
[1728051494737,5.0256,2378.8,2378.7,2.0]
[1728051497624,9.55612172,2378.8,2378.7,2.0]
[1728051497777,10.93209689,2378.8,2378.7,2.0]
[1728051498374,6.40157517,2378.8,2378.7,2.0]
[1728051498578,0.8218,2378.8,2378.7,2.0]
[1728051499184,5.0256,2378.8,2378.7,2.0]
[1728051499419,9.00612172,2378.8,2378.7,2.0]
[1728051500522,9.55612172,2378.8,2378.7,2.0]
[1728051507850,4.2038,2378.8,2378.7,2.0]
[1728051508052,3.0,2379.1,2378.7,6.20389]
[1728051508053,7.20328,2379.1,2378.7,6.20389]
[1728051508254,5.42026799,2379.3,2378.9,4.20355]
[1728051508671,4.9802,2379.3,2378.9,4.20355]
[1728051508991,4.2027,2379.5,2379.1,4.2032]
[1728051509286,4.76002172,2379.6,2379.2,4.20309]
[1728051509287,4.98192,2379.6,2379.2,4.20309]
[1728051509469,4.20229,2379.7,2379.2,4.97159]
[1728051509673,0.8022,2379.8,2379.4,4.20259]
[1728051509841,11.51199,2379.9,2379.2,0.7685]
[1728051509842,7.31,2379.9,2379.6,4.20236]
[1728051510152,4.20169,2380.0,2379.7,0.7685]
[1728051510358,4.20169,2380.0,2379.8,4.20203]
[1728051510359,1.23838117,2380.0,2379.8,4.20203]
[1728051510689,9.05151354,2380.4,2380.1,4.2015]
[1728051510690,7.31,2380.4,2380.1,4.2015]
[1728051510858,1.74151354,2380.5,2380.2,4.96966]
[1728051511061,1.74151354,2380.6,2380.3,4.20104]
[1728051511242,13.25171354,2380.9,2380.3,4.20104]
[1728051511449,10.7740231,2380.9,2380.3,4.20104]
[1728051511755,4.20028,2380.8,2380.3,4.20104]
[1728051512189,4.20048,2380.7,2380.2,4.96966]
[1728051512401,4.20098,2380.4,2379.9,0.757]
[1728051513407,4.20093,2380.5,2380.0,4.20157]
[1728051513590,8.18114172,2380.6,2380.1,4.20145]
[1728051513896,8.40176,2380.5,2380.0,4.20157]
[1728051514072,4.20098,2380.4,2380.0,4.20157]
[1728051514392,4.20117,2380.3,2379.9,0.757]
[1728051514580,4.20117,2380.3,2379.7,4.20219]
[1728051514581,4.20136,2380.2,2379.7,4.20219]
[1728051514784,8.40313,2380.1,2379.6,5.03546]
[1728051514991,4.20175,2380.0,2379.6,0.8331]
[1728051515292,4.20188,2379.9,2379.5,4.20241]
[1728051515496,4.20183,2380.0,2379.5,4.20255]
[1728051515696,4.704033,2380.0,2379.5,4.20255]
[1728051515999,4.20193,2379.9,2379.4,0.8331]
[1728051516169,4.20213,2379.8,2379.4,0.8331]
[1728051516374,8.40426,2379.8,2379.4,0.8331]
[1728051517010,0.502203,2380.0,2379.4,0.8331]
[1728051517182,4.20199,2379.9,2379.4,0.8331]
[1728051517503,4.20211,2379.8,2379.4,0.8331]
[1728051517713,4.20203,2379.8,2379.4,0.8331]
[1728051518107,4.20203,2379.8,2379.4,5.03581]
[1728051518478,4.20203,2379.8,2379.4,0.8331]
[1728051518671,4.20181,2380.0,2379.5,4.20247]
[1728051518870,4.20187,2379.9,2379.5,4.20247]
[1728051519210,0.55,2380.1,2379.6,4.20238]
[1728051519420,7.31,2380.3,2379.9,4.20183]
[1728051519582,7.31,2380.3,2380.0,4.99019]
[1728051519786,4.99065,2380.7,2380.2,4.20121]
[1728051520019,4.20081,2380.5,2380.0,4.99025]
[1728051520320,4.20105,2380.4,2379.8,4.20194]
[1728051520645,4.20109,2380.4,2379.7,0.7886]
[1728051520958,4.89161563,2380.6,2379.4,4.20264]
[1728051520959,4.20169,2380.0,2379.4,4.96064]
[1728051521125,0.8212,2380.3,2379.4,4.96064]
[1728051521126,4.20188,2379.9,2379.4,4.96064]
[1728051521304,4.20229,2379.7,2379.4,0.758]
[1728051521615,4.20204,2379.8,2379.4,4.96073]
[1728051522206,4.20204,2379.8,2379.4,0.758]
[1728051522409,0.55,2380.2,2379.4,0.455343]
[1728051522612,4.20175,2380.0,2379.6,4.20229]
[1728051523202,4.20175,2380.0,2379.5,4.20253]
[1728051523634,4.20196,2379.9,2379.5,4.20246]
[1728051523853,4.20196,2379.9,2379.4,0.455343]
[1728051523854,8.40355,2380.0,2379.6,4.20234]
[1728051524155,8.40355,2380.0,2379.4,0.455343]
[1728051524156,4.20195,2379.9,2379.4,0.455343]
[1728051524452,4.20215,2379.8,2379.4,0.455343]
[1728051524754,4.20223,2379.7,2379.4,0.455343]
[1728051525045,4.20291,2379.3,2378.8,4.2037]
[1728051525248,4.2031,2379.2,2378.8,4.2037]
[1728051525433,4.2031,2379.2,2378.8,4.99]
[1728051525638,4.20277,2379.4,2378.9,4.20359]
[1728051525952,7.31,2379.7,2378.8,0.7863]
[1728051525953,4.20246,2379.6,2379.0,4.20333]
[1728051526105,4.20246,2379.6,2379.2,4.20309]
[1728051526304,4.20246,2379.6,2379.1,4.20323]
[1728051526854,11.51222,2379.7,2379.2,4.20307]
[1728051527021,12.03361014,2379.7,2379.3,5.00609]
[1728051527422,7.83139014,2379.7,2379.4,4.20268]
[1728051527771,4.75782316,2379.9,2379.3,5.00609]
[1728051527772,4.2021,2379.8,2379.3,5.00609]
[1728051527922,4.2021,2379.8,2379.3,0.8032]
[1728051528124,4.20185,2380.0,2379.5,4.20239]
[1728051528323,4.20186,2379.9,2379.3,5.00599]
[1728051528529,4.20186,2379.9,2379.5,4.20241]
[1728051528766,4.2017,2380.0,2379.6,4.20231]
[1728051528960,8.40354,2380.0,2379.5,4.20241]
[1728051529268,4.20206,2379.8,2379.4,4.20271]
[1728051529447,8.40388,2379.9,2379.4,4.20271]
[1728051530266,4.20217,2379.8,2379.4,4.20271]
[1728051530656,4.20188,2379.9,2379.4,8.4053]
[1728051530849,0.55,2380.0,2379.4,4.20259]
[1728051531032,4.20192,2379.9,2379.5,4.20256]
[1728051531246,4.20192,2379.9,2379.4,4.20259]
[1728051531548,4.20205,2379.8,2379.4,4.20259]
[1728051532064,4.20205,2379.8,2379.4,8.40523]
[1728051532626,4.20205,2379.8,2379.4,4.20259]
[1728051533055,0.840375,2379.8,2379.3,0.8032]
[1728051533257,4.20263,2379.5,2379.1,8.02397]
[1728051533769,4.20246,2379.6,2379.1,8.02397]
[1728051533936,4.20267,2379.5,2379.1,8.02397]
[1728051534143,4.20246,2379.6,2379.1,9.22711]
[1728051534769,4.20246,2379.6,2379.2,4.20309]
[1728051534996,8.40493,2379.6,2379.2,4.20309]
[1728051535461,4.20258,2379.5,2379.1,5.02405]
[1728051535790,4.20258,2379.5,2379.1,0.8208]
[1728051535791,4.20281,2379.4,2379.1,0.8208]
[1728051535986,4.20258,2379.5,2379.1,0.8208]
[1728051536186,4.20258,2379.5,2379.1,5.02404]
[1728051536545,4.20258,2379.5,2379.1,0.8208]
[1728051536886,7.31,2379.9,2379.4,4.20263]
[1728051537085,4.20205,2379.8,2379.5,0.7952]
[1728051538085,7.31,2379.9,2379.5,0.7952]
[1728051538396,11.51187,2379.9,2379.5,0.7952]
[1728051538563,4.20219,2379.8,2379.5,0.7952]
[1728051538881,4.20223,2379.7,2379.3,5.00229]
[1728051539692,4.20223,2379.7,2379.3,0.7994]
[1728051540011,4.20229,2379.7,2379.3,5.0023]
[1728051540411,5.433167,2379.9,2379.3,0.7994]
[1728051540711,4.2023,2379.7,2379.3,5.00215]
[1728051540913,4.20239,2379.6,2379.3,0.7994]
[1728051541386,4.2021,2379.8,2379.4,4.20273]
[1728051541584,4.20192,2379.9,2379.5,4.20246]
[1728051541803,4.20192,2379.9,2379.6,0.7963]
[1728051542316,11.51154,2380.1,2379.6,0.7963]
[1728051542317,7.31,2380.1,2379.6,0.7963]
[1728051542543,11.51165,2380.1,2379.7,4.20219]
[1728051542750,4.20163,2380.1,2379.6,4.99865]
[1728051543449,4.98147,2379.9,2379.4,0.7698]
[1728051543649,4.20261,2379.5,2379.2,0.7583]
[1728051543956,4.20217,2379.8,2379.2,4.96139]
[1728051544125,4.20222,2379.7,2379.3,4.20284]
[1728051544922,4.20249,2379.6,2379.2,0.7583]
[1728051545118,4.20264,2379.5,2379.2,0.7583]
[1728051545642,4.9815,2379.9,2379.2,4.96131]
[1728051545643,4.20222,2379.7,2379.2,4.96131]
[1728051545848,8.40395,2379.9,2379.4,4.20264]
[1728051546054,4.20195,2379.9,2379.5,4.20253]
[1728051546294,4.20175,2380.0,2379.6,4.98201]
[1728051546623,0.7629,2380.2,2379.7,4.20212]
[1728051546916,5.94225354,2380.6,2380.2,4.20123]
[1728051546917,4.99406,2380.6,2380.2,4.20123]
[1728051547115,4.20095,2380.5,2379.9,0.02242203]
[1728051547349,4.20048,2380.7,2380.2,4.20119]
[1728051547504,5.4498652,2380.8,2380.2,0.781]
[1728051547710,4.6402652,2380.8,2380.3,4.20099]
[1728051548062,4.20072,2380.6,2380.2,4.9823]
[1728051548349,4.20028,2380.8,2380.4,4.20096]
[1728051548539,4.2007,2380.6,2380.2,4.98223]
[1728051549265,0.7829,2380.7,2380.0,0.7508]
[1728051549471,4.2015,2380.1,2379.5,4.20245]
[1728051549747,4.20186,2379.9,2379.5,4.96815]
[1728051549968,4.20158,2380.1,2379.5,4.96815]
[1728051550107,4.20171,2380.0,2379.6,4.20229]
[1728051550619,4.20171,2380.0,2379.5,4.96815]
[1728051550821,4.20171,2380.0,2379.6,4.20238]
[1728051551222,4.20152,2380.1,2379.7,4.20218]
[1728051552052,15.71223,2380.4,2379.9,4.20177]
[1728051552253,4.20116,2380.3,2379.9,4.20177]
[1728051552409,4.20146,2380.2,2379.7,4.20211]
[1728051552610,4.20146,2380.2,2379.6,0.8062]
[1728051552611,4.20176,2380.0,2379.6,5.00849]
[1728051553011,4.20164,2380.1,2379.7,4.2022]
[1728051553247,4.20152,2380.1,2379.6,5.00856]
[1728051553419,4.20152,2380.1,2379.6,5.00848]
[1728051553420,8.40316,2380.1,2379.6,5.00848]
[1728051553631,4.20178,2380.0,2379.6,5.00845]
[1728051554262,0.55,2380.3,2379.6,0.8062]
[1728051554263,4.20212,2379.8,2379.6,0.8062]
[1728051554460,4.20221,2379.7,2379.6,0.8062]
[1728051554973,4.20245,2379.6,2379.3,0.8005]
[1728051555179,1.74151354,2380.2,2379.3,0.8005]
[1728051555180,4.20203,2379.8,2379.3,5.0034]
[1728051555384,4.20221,2379.7,2379.3,5.0034]
[1728051556235,0.7866,2379.9,2379.3,0.8005]
[1728051556435,4.20262,2379.5,2379.3,0.8005]
[1728051557134,8.40531,2379.5,2379.3,0.8005]
[1728051557334,4.20262,2379.5,2379.3,0.8005]
[1728051560272,4.20254,2379.6,2379.3,0.8005]
[1728051560582,4.20256,2379.5,2379.3,0.8005]
[1728051561745,4.20254,2379.6,2379.3,0.8005]
[1728051561949,8.40507,2379.6,2379.3,0.8005]
[1728051562764,4.20258,2379.5,2379.3,0.8005]
[1728051563176,4.20258,2379.5,2379.1,0.7543]
[1728051563177,4.20274,2379.4,2379.1,0.7543]
[1728051563782,4.20237,2379.7,2379.1,4.95756]
[1728051563783,4.20259,2379.5,2379.1,4.95756]
[1728051567685,4.20235,2379.7,2379.1,4.95756]
[1728051567889,4.20252,2379.6,2379.2,4.20306]
[1728051568072,4.20257,2379.5,2379.1,4.95752]
[1728051568273,4.20257,2379.5,2379.1,9.16067]
[1728051568477,4.20224,2379.7,2379.3,4.20282]
[1728051568810,11.51199,2379.9,2379.4,4.20264]
[1728051569107,11.51199,2379.9,2379.5,0.759]
[1728051569609,11.51199,2379.9,2379.5,4.96153]
[1728051570812,7.31,2379.9,2379.5,4.96147]
[1728051570961,1.74151354,2380.1,2379.7,4.20209]
[1728051570962,5.94303354,2380.1,2379.7,4.20209]
[1728051571309,4.20152,2380.1,2379.7,4.20209]
[1728051571665,4.20183,2380.0,2379.6,4.20237]
[1728051571896,4.20183,2380.0,2379.6,4.20227]
[1728051572912,5.94298354,2380.2,2379.9,0.7798]
[1728051573090,10.14445354,2380.2,2379.9,0.7798]
[1728051573270,4.20147,2380.2,2379.9,0.7798]
[1728051573475,1.74151354,2380.3,2380.0,3.97645481]
[1728051573680,5.94181354,2380.8,2380.4,4.2009]
[1728051573865,1.74151354,2380.9,2380.5,4.20078]
[1728051574062,4.04802371,2381.1,2380.9,4.20009]
[1728051574381,0.1175618,2381.1,2381.0,4.99641]
[1728051574574,0.1175618,2381.1,2381.0,8.97286481]
[1728051575307,0.1175618,2381.1,2381.0,4.99641]
[1728051575805,0.1175618,2381.1,2381.0,0.7965]
[1728051576210,0.1175618,2381.1,2381.0,4.99641]
[1728051576469,0.1175618,2381.1,2381.0,8.97286481]
[1728051577186,0.1175618,2381.1,2381.0,4.99641]
[1728051578032,0.1175618,2381.1,2381.0,5.04280856]
[1728051578334,0.1175618,2381.1,2381.0,4.58903356]
[1728051578620,0.1175618,2381.1,2381.0,0.342725]
[1728051578825,0.1175618,2381.1,2380.8,4.20026]
[1728051579461,4.3174018,2381.1,2380.5,3.0]
[1728051579585,4.3174018,2381.1,2380.7,3.0]
[1728051579930,4.3174018,2381.1,2380.5,3.0]
[1728051579931,4.20036,2380.8,2380.4,4.20095]
[1728051580139,0.96926698,2381.1,2380.2,4.20116]
[1728051580140,4.19995,2381.0,2380.6,4.20051]
[1728051580418,4.20036,2380.8,2380.4,4.2009]
[1728051580622,4.20011,2380.9,2380.5,4.20077]
[1728051580807,4.19995,2381.0,2380.5,4.20077]
[1728051581178,4.19995,2381.0,2380.6,4.20059]
[1728051581579,4.20013,2380.9,2380.5,4.96949]
[1728051581900,4.20018,2380.9,2380.5,0.7687]
[1728051582423,4.20018,2380.9,2380.4,3.97645481]
[1728051582424,4.20029,2380.8,2380.4,4.20082]
[1728051582627,4.95151,2380.9,2380.5,4.2007]
[1728051583827,5.16902698,2381.1,2380.6,4.20059]
[1728051584035,4.20009,2380.9,2380.5,4.2007]
[1728051584194,4.20006,2381.0,2380.6,4.2006]
[1728051584390,0.1175618,2381.1,2380.7,4.20043]
[1728051584632,4.3173718,2381.1,2380.7,4.20043]
[1728051585148,0.1175618,2381.1,2380.8,4.20021]
[1728051585442,4.3174418,2381.1,2380.8,0.8208]
[1728051585650,4.3174418,2381.1,2380.6,4.20058]
[1728051585798,4.3174418,2381.1,2380.6,8.40108]
[1728051586211,4.19991,2381.0,2380.6,4.2005]
[1728051586909,4.19991,2381.0,2380.5,0.7607]
[1728051586910,4.2001,2380.9,2380.5,0.7607]
[1728051587942,4.2001,2380.9,2380.5,4.96148]
[1728051588842,4.95421,2381.0,2380.5,4.96137]
[1728051589041,4.19991,2381.0,2380.6,4.20051]
[1728051589245,4.20011,2380.9,2380.5,4.96148]
[1728051591106,4.19999,2381.0,2380.6,4.20056]
[1728051592232,4.20011,2380.9,2380.5,4.96148]
[1728051592436,4.20011,2380.9,2380.3,4.20101]
[1728051592437,4.20042,2380.8,2380.3,4.20101]
[1728051592740,4.97072,2380.8,2380.3,4.20101]
[1728051592943,4.97072,2380.8,2380.4,4.20081]